[Event "Condigne Dutch Open 2018"]
[Site "Dieren"]
[Date "2018.07.28"]
[Round "5"]
[White "Hausrath, Daniel"]
[Black "Shyaamnikhil P"]
[Result "1/2-1/2"]
[ECO "D02"]
[WhiteElo "2495"]
[BlackElo "2375"]
[Annotator "ChessBase"]
[PlyCount "51"]
[EventDate "2018.07.24"]
[EventType "swiss"]
[EventCountry "NED"]
[SourceTitle "playchess.com"]
[Source "ChessBase"]
[SourceQuality "1"]
[TimeControl "40/5400+30:1800+30"]

1. Nf3 {[%emt 0:00:00]} d5 {[%emt 0:00:47]} 2. g3 {[%emt 0:00:00]} g6 {[%emt 0:00:14]} 3. Bg2 {[%emt 0:00:00]} Bg7 {[%emt 0:00:07]} 4. d4 {[%emt 0:03:06]} Nh6 {[%emt 0:01:29]} 5. h4 {[%emt 0:02:57]} Nd7 {[%emt 0:13:35]} 6. c4 {[%emt 0:09:00]} dxc4 {[%emt 0:06:02]} 7. Na3 {[%emt 0:04:09]} Nb6 {[%emt 0:06:32]} 8. Nxc4 {[%emt 0:08:43]} Nf5 {[%emt 0:12:21]} 9. Na5 {[%emt 0:16:34]} Nxd4 {[%emt 0:12:28]} 10. Nxd4 {[%emt 0:01:10]} Qxd4 {[%emt 0:00:08]} 11. Qxd4 {[%emt 0:00:24]} Bxd4 {[%emt 0:00:07]} 12. Nxb7 {[%emt 0:00:48]} a5 {[%emt 0:15:37]} 13. Bd2 {[%emt 0:20:34]} a4 {[%emt 0:20:21]} 14. Rc1 {[%emt 0:03:21]} Ra7 {[%emt 0:01:09]} 15. Rxc7 {[%emt 0:03:35]} O-O {[%emt 0:02:08]} 16. O-O {[%emt 0:07:01]} Bxb7 {[%emt 0:01:48]} 17. Rxb7 {[%emt 0:01:06]} Rxb7 {[%emt 0:00:06]} 18. Bxb7 {[%emt 0:00:05]} Bxb2 {[%emt 0:00:20]} 19. Bb4 {[%emt 0:01:26]} Rb8 {[%emt 0:01:02]} 20. Bc6 {[%emt 0:03:56]} Nd5 {[%emt 0:00:54]} 21. Bd2 {[%emt 0:01:25]} Nc3 {[%emt 0:00:13]} 22. Bxc3 {[%emt 0:01:06]} Bxc3 {[%emt 0:00:05]} 23. Bxa4 {[%emt 0:00:05]} Rb2 {[%emt 0:00:03]} 24. Rc1 {[%emt 0:00:08]} Rxa2 {[%emt 0:00:09]} 25. Rxc3 {[%emt 0:00:16]} Rxa4 {[%emt 0:00:04]} 26. Kg2 {[%emt 0:00:08]} 1/2-1/2

[Event "Condigne Dutch Open 2018"]
[Site "Dieren"]
[Date "2018.07.28"]
[Round "5"]
[White "Van Foreest, Lucas"]
[Black "Vrolijk, Liam"]
[Result "1-0"]
[ECO "C11"]
[WhiteElo "2488"]
[BlackElo "2419"]
[Annotator "ChessBase"]
[PlyCount "41"]
[EventDate "2018.07.24"]
[EventType "swiss"]
[EventCountry "NED"]
[SourceTitle "playchess.com"]
[Source "ChessBase"]
[SourceQuality "1"]
[TimeControl "40/5400+30:1800+30"]

1. e4 {[%emt 0:00:00]} e6 {[%emt 0:00:06]} 2. d4 {[%emt 0:00:00]} d5 {[%emt 0:00:04]} 3. Nc3 {[%emt 0:00:00]} Nf6 {[%emt 0:01:10]} 4. e5 {[%emt 0:00:00]} Nfd7 {[%emt 0:00:06]} 5. f4 {[%emt 0:00:00]} c5 {[%emt 0:00:39]} 6. Nf3 {[%emt 0:00:00]} Nc6 {[%emt 0:00:31]} 7. Be3 {[%emt 0:00:01]} Be7 {[%emt 0:01:28]} 8. Qd2 {[%emt 0:00:03]} a6 {[%emt 0:00:07]} 9. Bd3 {[%emt 0:00:04]} b5 {[%emt 0:07:56]} 10. O-O {[%emt 0:00:22]} O-O {[%emt 0:01:53]} 11. Nd1 {[%emt 0:00:33]} cxd4 {[%emt 0:03:22]} 12. Nxd4 {[%emt 0:00:09]} Bb7 {[%emt 0:06:12]} 13. Nf2 {[%emt 0:10:57]} Nc5 {[%emt 0:04:33]} 14. Qe2 {[%emt 0:02:39]} Qc7 {[%emt 0:06:34]} 15. c3 {[%emt 0:16:15]} Rac8 {[%emt 0:08:57]} 16. Rac1 {[%emt 0:05:14]} Qb8 {[%emt 0:10:28]} 17. Bxh7+ {[%emt 0:03:19]} Kxh7 {[%emt 0:02:52]} 18. Qh5+ {[%emt 0:00:19]} Kg8 {[%emt 0:00:05]} 19. Ng4 {[%emt 0:00:02]} Nxd4 {[%emt 0:28:09]} 20. Bxd4 {[%emt 0:00:05]} Ne4 {[%emt 0:02:51]} 21. Rf3 {[%emt 0:00:05]} 1-0

[Event "Condigne Dutch Open 2018"]
[Site "Dieren"]
[Date "2018.07.28"]
[Round "5"]
[White "Leenhouts, Koen"]
[Black "Schoppen, Casper"]
[Result "1/2-1/2"]
[ECO "A90"]
[WhiteElo "2483"]
[BlackElo "2395"]
[Annotator "ChessBase"]
[PlyCount "145"]
[EventDate "2018.07.24"]
[EventType "swiss"]
[EventCountry "NED"]
[SourceTitle "playchess.com"]
[Source "ChessBase"]
[SourceQuality "1"]
[TimeControl "40/5400+30:1800+30"]

1. d4 {[%emt 0:00:00]} e6 {[%emt 0:00:06]} 2. c4 {[%emt 0:00:00]} f5 {[%emt 0:00:23]} 3. Nf3 {[%emt 0:00:04]} Nf6 {[%emt 0:00:10]} 4. g3 {[%emt 0:01:13]} d5 {[%emt 0:00:30]} 5. Bg2 {[%emt 0:00:18]} c6 {[%emt 0:00:11]} 6. O-O {[%emt 0:00:11]} Bd6 {[%emt 0:00:07]} 7. Nc3 {[%emt 0:06:03]} O-O {[%emt 0:00:31]} 8. Rb1 {[%emt 0:00:18]} Ne4 {[%emt 0:06:46]} 9. Qc2 {[%emt 0:02:05]} Qe7 {[%emt 0:12:53]} 10. Bf4 {[%emt 0:06:12]} Nd7 {[%emt 0:07:35]} 11. Bxd6 {[%emt 0:06:23]} Nxd6 {[%emt 0:00:53]} 12. Nd2 {[%emt 0:00:21]} h5 {[%emt 0:20:51]} 13. b4 {[%emt 0:05:03]} h4 {[%emt 0:04:20]} 14. b5 {[%emt 0:00:54]} hxg3 {[%emt 0:01:36]} 15. bxc6 {[%emt 0:09:14]} gxf2+ {[%emt 0:05:21]} 16. Rxf2 {[%emt 0:00:57]} Nf6 {[%emt 0:09:40]} 17. cxd5 {[%emt 0:00:29]} Ng4 {[%emt 0:02:13]} 18. Rf3 {[%emt 0:00:49]} Qh4 {[%emt 0:13:54]} 19. Nf1 {[%emt 0:04:21]} Nf6 {[%emt 0:01:30]} 20. Qd2 {[%emt 0:02:09]} bxc6 {[%emt 0:04:21]} 21. dxc6 {[%emt 0:03:15]} Ba6 {[%emt 0:00:15]} 22. Qf4 {[%emt 0:05:20]} Qxf4 {[%emt 0:00:23]} 23. Rxf4 {[%emt 0:00:02]} g5 {[%emt 0:01:24]} 24. Rf3 {[%emt 0:00:56]} Rac8 {[%emt 0:00:36]} 25. Re3 {[%emt 0:01:25]} Rfe8 {[%emt 0:00:37]} 26. Re5 {[%emt 0:02:28]} Rc7 {[%emt 0:02:13]} 27. a4 {[%emt 0:02:56]} Kf7 {[%emt 0:00:31]} 28. Ra5 {[%emt 0:01:25]} Bc4 {[%emt 0:02:04]} 29. Ne3 {[%emt 0:00:46]} Bd5 {[%emt 0:01:30]} 30. Nexd5 {[%emt 0:08:03]} exd5 {[%emt 0:00:08]} 31. Nxd5 {[%emt 0:00:09]} Nxd5 {[%emt 0:00:16]} 32. Bxd5+ {[%emt 0:02:26]} Kf6 {[%emt 0:00:08]} 33. Rb2 {[%emt 0:00:21]} g4 {[%emt 0:00:24]} 34. Rc5 {[%emt 0:00:28]} Ree7 {[%emt 0:01:17]} 35. a5 {[%emt 0:00:40]} a6 {[%emt 0:00:26]} 36. Bg2 {[%emt 0:07:28]} Nb5 {[%emt 0:00:49]} 37. Rd2 {[%emt 0:02:20]} Nd6 {[%emt 0:00:23]} 38. Kf2 {[%emt 0:00:22]} Rh7 {[%emt 0:00:40]} 39. Kg3 {[%emt 0:02:33]} Rce7 {[%emt 0:00:25]} 40. e4 {[%emt 0:04:04]} fxe4 {[%emt 0:31:24]} 41. Rf2+ {[%emt 0:30:31]} Kg6 {[%emt 0:00:00]} 42. Rd5 {[%emt 0:00:00]} Ne8 {[%emt 0:00:00]} 43. Rf4 {[%emt 0:00:00]} e3 {[%emt 0:00:00]} 44. Rxg4+ {[%emt 0:00:00]} Kf7 {[%emt 0:00:00]} 45. Rf5+ {[%emt 0:00:00]} Ke6 {[%emt 0:00:00]} 46. Re5+ {[%emt 0:00:00]} Kd6 {[%emt 0:00:00]} 47. Kf3 {[%emt 0:00:00]} Nf6 {[%emt 0:00:00]} 48. Rgg5 {[%emt 0:00:00]} Rxh2 {[%emt 0:01:30]} 49. Rxe7 {[%emt 0:00:00]} Kxe7 {[%emt 0:00:10]} 50. Kxe3 {[%emt 0:00:00]} Ne8 {[%emt 0:00:40]} 51. Re5+ {[%emt 0:00:00]} Kd6 {[%emt 0:00:57]} 52. Bf3 {[%emt 0:00:00]} Nc7 {[%emt 0:00:13]} 53. Rg5 {[%emt 0:00:00]} Rh6 {[%emt 0:00:53]} 54. Rg7 {[%emt 0:00:17]} Re6+ {[%emt 0:01:36]} 55. Kd3 {[%emt 0:00:15]} Re7 {[%emt 0:00:19]} 56. Rg1 {[%emt 0:01:12]} Re8 {[%emt 0:00:15]} 57. Kc4 {[%emt 0:00:46]} Re3 {[%emt 0:00:20]} 58. Rg6+ {[%emt 0:00:29]} Ke7 {[%emt 0:01:44]} 59. Rg7+ {[%emt 0:01:42]} Kd8 {[%emt 0:00:08]} 60. Rd7+ {[%emt 0:01:18]} Kc8 {[%emt 0:00:05]} 61. Bg4 {[%emt 0:00:29]} Kb8 {[%emt 0:00:22]} 62. Bf5 {[%emt 0:02:08]} Ra3 {[%emt 0:01:25]} 63. Kb4 {[%emt 0:02:35]} Rf3 {[%emt 0:00:14]} 64. Be4 {[%emt 0:00:15]} Re3 {[%emt 0:01:04]} 65. Bf5 {[%emt 0:02:15]} Rf3 {[%emt 0:00:06]} 66. Rf7 {[%emt 0:00:32]} Rg3 {[%emt 0:00:52]} 67. Kc5 {[%emt 0:01:23]} Rc3+ {[%emt 0:00:04]} 68. Kd6 {[%emt 0:00:42]} Nb5+ {[%emt 0:00:03]} 69. Kd7 {[%emt 0:00:54]} Nxd4 {[%emt 0:00:48]} 70. Rf8+ {[%emt 0:00:56]} Ka7 {[%emt 0:00:01]} 71. c7 {[%emt 0:00:30]} Rxc7+ {[%emt 0:00:05]} 72. Kxc7 {[%emt 0:00:13]} Ne6+ {[%emt 0:00:05]} 73. Bxe6 {[%emt 0:00:46]} 1/2-1/2

[Event "Condigne Dutch Open 2018"]
[Site "Dieren"]
[Date "2018.07.28"]
[Round "5"]
[White "Lai, Hing Ting"]
[Black "De Jong, Tom"]
[Result "1-0"]
[ECO "E63"]
[WhiteElo "2447"]
[BlackElo "2201"]
[Annotator "NA RC"]
[PlyCount "55"]
[EventDate "2018.07.24"]
[EventType "swiss"]
[EventCountry "NED"]
[SourceTitle "playchess.com"]
[Source "ChessBase"]
[SourceQuality "1"]
[TimeControl "40/5400+30:1800+30"]

1. Nf3 {[%emt 0:00:00]} Nf6 {[%emt 0:00:07]} 2. g3 {[%emt 0:00:00]} g6 {[%emt 0:00:06]} 3. Bg2 {[%emt 0:00:00]} Bg7 {[%emt 0:00:07]} 4. O-O {[%emt 0:00:00]} O-O {[%emt 0:00:10]} 5. d4 {[%emt 0:00:02]} d6 {[%emt 0:00:13]} 6. c4 {[%emt 0:00:09]} Nc6 {[%emt 0:00:12]} 7. Nc3 {[%emt 0:00:06]} a6 {[%emt 0:00:05]} 8. e3 {[%emt 0:00:09]} e5 {[%emt 0:05:41]} 9. d5 {[%emt 0:00:54]} Ne7 {[%emt 0:00:19]} 10. e4 {[%emt 0:00:22]} Ne8 {[%emt 0:05:11]} 11. Ne1 {[%emt 0:00:23]} f5 {[%emt 0:00:19]} 12. Nd3 {[%emt 1:33:55]} Nf6 {[%emt 0:11:00]} 13. Bd2 {[%emt 0:00:00]} fxe4 {[%emt 0:02:33]} 14. Nxe4 {[%emt 0:00:00]} Nxe4 {[%emt 0:00:48]} 15. Bxe4 {[%emt 0:00:00]} Bh3 {[%emt 0:00:40]} 16. Re1 {[%emt 0:00:00]} Nf5 {[%emt 0:06:07]} 17. Bc3 {[%emt 0:00:00]} Rf7 {[%emt 0:04:30]} 18. f4 {[%emt 0:00:00]} Qf8 {[%emt 0:14:21]} 19. Nf2 {[%emt 0:00:00]} exf4 {[%emt 0:02:08]} 20. gxf4 {[%emt 0:00:00]} Bxc3 {[%emt 0:00:43]} 21. bxc3 {[%emt 0:00:00]} Qh6 {[%emt 0:08:22]} 22. Qd3 {[%emt 0:00:00]} Qxf4 {[%emt 0:02:35]} 23. Nxh3 {[%emt 0:00:00]} Qg4+ {[%emt 0:00:16]} 24. Kh1 {[%emt 0:00:00]} Raf8 {[%emt 0:02:53]} 25. Rg1 {[%emt 0:00:00]} Qh4 {[%emt 0:01:25]} 26. Ng5 {[%emt 0:00:00]} Re7 {[%emt 0:00:20]} 27. Ne6 {[%emt 0:00:00]} Rf6 {[%emt 0:00:36]} 28. Bxf5 {[%emt 0:00:00]} 1-0

[Event "Condigne Dutch Open 2018"]
[Site "Dieren"]
[Date "2018.07.28"]
[Round "5"]
[White "Himanshu, Sharma"]
[Black "Buckels, Valentin"]
[Result "1/2-1/2"]
[ECO "C68"]
[WhiteElo "2420"]
[BlackElo "2353"]
[Annotator "NA"]
[PlyCount "118"]
[EventDate "2018.07.24"]
[EventType "swiss"]
[EventCountry "NED"]
[SourceTitle "playchess.com"]
[Source "ChessBase"]
[SourceQuality "1"]
[TimeControl "40/5400+30:1800+30"]

1. e4 {[%emt 0:00:00]} e5 {[%emt 0:00:08]} 2. Nf3 {[%emt 0:00:00]} Nc6 {[%emt 0:00:06]} 3. Bb5 {[%emt 0:00:00]} a6 {[%emt 0:00:06]} 4. Bxc6 {[%emt 0:00:09]} dxc6 {[%emt 0:00:09]} 5. O-O {[%emt 0:00:11]} Bd6 {[%emt 0:00:28]} 6. d4 {[%emt 0:00:07]} exd4 {[%emt 0:00:08]} 7. Qxd4 {[%emt 0:00:04]} f6 {[%emt 0:00:09]} 8. Be3 {[%emt 0:00:05]} Ne7 {[%emt 0:00:07]} 9. Nbd2 {[%emt 0:00:06]} Be6 {[%emt 0:00:06]} 10. Qc3 {[%emt 0:00:37]} Qd7 {[%emt 0:00:13]} 11. Nc4 {[%emt 0:12:05]} Bxc4 {[%emt 0:01:03]} 12. Qxc4 {[%emt 0:00:05]} Ng6 {[%emt 0:00:16]} 13. Rad1 {[%emt 0:03:07]} O-O-O {[%emt 0:00:51]} 14. Nd4 {[%emt 0:04:29]} Ne5 {[%emt 0:06:13]} 15. Qe2 {[%emt 0:00:09]} g6 {[%emt 0:01:04]} 16. f3 {[%emt 0:06:48]} Qf7 {[%emt 0:05:28]} 17. f4 {[%emt 0:10:36]} Nc4 {[%emt 0:02:51]} 18. b3 {[%emt 0:10:15]} Nxe3 {[%emt 0:02:02]} 19. Qxe3 {[%emt 0:00:13]} Rhe8 {[%emt 0:03:19]} 20. Kh1 {[%emt 0:08:23]} Bc5 {[%emt 0:14:22]} 21. c3 {[%emt 0:02:50]} Rd7 {[%emt 0:03:16]} 22. Rfe1 {[%emt 0:16:45]} Rde7 {[%emt 0:06:57]} 23. Qf3 {[%emt 0:05:23]} Qd5 {[%emt 0:04:47]} 24. b4 {[%emt 0:09:34]} Bb6 {[%emt 0:14:11]} 25. Qh3+ {[%emt 0:00:36]} Kb8 {[%emt 0:00:55]} 26. Qxh7 {[%emt 0:01:43]} Rxe4 {[%emt 0:00:38]} 27. Rxe4 {[%emt 0:01:58]} Qxe4 {[%emt 0:00:27]} 28. h3 {[%emt 0:00:34]} c5 {[%emt 0:04:50]} 29. Nf3 {[%emt 0:01:31]} Qc2 {[%emt 0:02:18]} 30. Qd7 {[%emt 0:01:53]} Re2 {[%emt 0:01:38]} 31. bxc5 {[%emt 0:02:29]} Bxc5 {[%emt 0:00:10]} 32. Rd2 {[%emt 0:01:00]} Qc1+ {[%emt 0:06:26]} 33. Kh2 {[%emt 0:00:09]} Rxd2 {[%emt 0:01:29]} 34. Qxd2 {[%emt 0:00:05]} Qxd2 {[%emt 0:00:05]} 35. Nxd2 {[%emt 0:00:02]} Be3 {[%emt 0:00:06]} 36. Nf3 {[%emt 0:00:48]} Bxf4+ {[%emt 0:00:06]} 37. Kg1 {[%emt 0:00:06]} Bg3 {[%emt 0:02:22]} 38. Kf1 {[%emt 0:00:04]} c5 {[%emt 0:00:14]} 39. c4 {[%emt 0:00:34]} Kc7 {[%emt 0:00:47]} 40. Ke2 {[%emt 0:00:18]} Kd6 {[%emt 0:30:19]} 41. a4 {[%emt 0:31:58]} Ke6 {[%emt 0:01:51]} 42. Kd3 {[%emt 0:01:11]} Kf5 {[%emt 0:01:48]} 43. Nd2 {[%emt 0:01:45]} Be1 {[%emt 0:01:17]} 44. g4+ {[%emt 0:00:00]} Ke6 {[%emt 0:00:00]} 45. Nf3 {[%emt 0:00:00]} Bg3 {[%emt 0:00:00]} 46. Ke4 {[%emt 0:00:00]} Kd6 {[%emt 0:00:00]} 47. Kd3 {[%emt 0:00:00]} Kc6 {[%emt 0:00:00]} 48. Kc3 {[%emt 0:00:00]} Kc7 {[%emt 0:00:00]} 49. Kc2 {[%emt 0:00:00]} Kb6 {[%emt 0:00:00]} 50. Kc3 {[%emt 0:00:00]} Bf2 {[%emt 0:00:00]} 51. Kc2 {[%emt 0:00:00]} Ka5 {[%emt 0:00:00]} 52. Kb3 {[%emt 0:00:00]} g5 {[%emt 0:00:00]} 53. Nd2 {[%emt 0:00:00]} b5 {[%emt 0:00:00]} 54. axb5 {[%emt 0:00:00]} axb5 {[%emt 0:00:00]} 55. Ne4 {[%emt 0:00:00]} Bd4 {[%emt 0:00:00]} 56. Nd6 {[%emt 0:00:00]} b4 {[%emt 0:00:00]} 57. Ne4 {[%emt 0:00:00]} Kb6 {[%emt 0:00:00]} 58. Nd2 {[%emt 0:00:00]} Kc6 {[%emt 0:00:00]} 59. Nf3 {[%emt 0:00:00]} Bc3 {[%emt 0:00:00]} 1/2-1/2

[Event "Condigne Dutch Open 2018"]
[Site "Dieren"]
[Date "2018.07.28"]
[Round "5"]
[White "Hendriks, Willy"]
[Black "Ojas Kulkarni"]
[Result "1-0"]
[ECO "B20"]
[WhiteElo "2417"]
[BlackElo "2226"]
[Annotator "NA"]
[PlyCount "101"]
[EventDate "2018.07.24"]
[EventType "swiss"]
[EventCountry "NED"]
[SourceTitle "playchess.com"]
[Source "ChessBase"]
[SourceQuality "1"]
[TimeControl "40/5400+30:1800+30"]

1. g3 {[%emt 0:00:00]} c5 {[%emt 0:00:46]} 2. Bg2 {[%emt 0:00:00]} Nc6 {[%emt 0:00:30]} 3. e4 {[%emt 0:03:10]} e6 {[%emt 0:01:42]} 4. d3 {[%emt 0:01:31]} g6 {[%emt 0:00:30]} 5. f4 {[%emt 0:05:31]} Bg7 {[%emt 0:00:43]} 6. Nf3 {[%emt 0:02:37]} Nge7 {[%emt 0:00:24]} 7. O-O {[%emt 0:00:08]} Rb8 {[%emt 0:02:07]} 8. c3 {[%emt 0:03:32]} d5 {[%emt 0:00:28]} 9. Be3 {[%emt 0:14:16]} b6 {[%emt 0:02:05]} 10. Bf2 {[%emt 0:03:36]} O-O {[%emt 0:01:46]} 11. Na3 {[%emt 0:00:34]} Qd7 {[%emt 0:16:30]} 12. e5 {[%emt 0:01:07]} a5 {[%emt 0:01:58]} 13. Nc2 {[%emt 0:01:49]} Ba6 {[%emt 0:07:53]} 14. Re1 {[%emt 0:00:30]} Rfc8 {[%emt 0:00:50]} 15. g4 {[%emt 0:04:31]} d4 {[%emt 0:06:13]} 16. cxd4 {[%emt 0:05:21]} Nxd4 {[%emt 0:00:47]} 17. Ncxd4 {[%emt 0:01:35]} cxd4 {[%emt 0:00:04]} 18. Qd2 {[%emt 0:02:38]} Nd5 {[%emt 0:02:10]} 19. Nxd4 {[%emt 0:01:25]} Bf8 {[%emt 0:10:33]} 20. a3 {[%emt 0:00:40]} Bc5 {[%emt 0:00:11]} 21. Nf3 {[%emt 0:04:57]} Bxf2+ {[%emt 0:02:20]} 22. Kxf2 {[%emt 0:00:04]} Qa4 {[%emt 0:00:41]} 23. Re4 {[%emt 0:09:34]} Qb3 {[%emt 0:02:18]} 24. Nd4 {[%emt 0:00:29]} Qxd3 {[%emt 0:00:41]} 25. Rd1 {[%emt 0:00:13]} Qxd2+ {[%emt 0:06:06]} 26. Rxd2 {[%emt 0:00:02]} Kf8 {[%emt 0:03:00]} 27. f5 {[%emt 0:04:45]} Ke7 {[%emt 0:00:32]} 28. f6+ {[%emt 0:00:48]} Kf8 {[%emt 0:01:13]} 29. g5 {[%emt 0:00:24]} Rc7 {[%emt 0:03:56]} 30. Rh4 {[%emt 0:03:37]} Kg8 {[%emt 0:04:12]} 31. Bxd5 {[%emt 0:01:24]} exd5 {[%emt 0:00:02]} 32. Rh3 {[%emt 0:02:01]} Re8 {[%emt 0:00:47]} 33. Re3 {[%emt 0:00:11]} Rc1 {[%emt 0:00:06]} 34. h4 {[%emt 0:04:35]} Rf1+ {[%emt 0:05:03]} 35. Kg2 {[%emt 0:05:02]} h5 {[%emt 0:00:25]} 36. e6 {[%emt 0:03:51]} Rf4 {[%emt 0:04:11]} 37. exf7+ {[%emt 0:02:36]} Kxf7 {[%emt 0:00:02]} 38. Rxe8 {[%emt 0:00:14]} Kxe8 {[%emt 0:00:02]} 39. Ne6 {[%emt 0:01:08]} Rg4+ {[%emt 0:00:02]} 40. Kf3 {[%emt 0:01:34]} Bb7 {[%emt 0:31:44]} 41. Re2 {[%emt 0:15:00]} d4+ {[%emt 0:00:00]} 42. Kf2 {[%emt 0:00:07]} d3 {[%emt 0:00:00]} 43. Ng7+ {[%emt 0:00:47]} Kd8 {[%emt 0:00:00]} 44. Re8+ {[%emt 0:01:19]} Kd7 {[%emt 0:00:00]} 45. Re7+ {[%emt 0:01:31]} Kc6 {[%emt 0:00:00]} 46. f7 {[%emt 0:04:51]} d2 {[%emt 0:00:00]} 47. f8=Q {[%emt 0:00:15]} d1=Q {[%emt 0:00:00]} 48. Qe8+ {[%emt 0:00:31]} Kc5 {[%emt 0:00:00]} 49. Rc7+ {[%emt 0:00:56]} Kd4 {[%emt 0:00:00]} 50. Qe3+ {[%emt 0:00:29]} Kd5 {[%emt 0:00:00]} 51. Rd7+ {[%emt 0:00:31]} 1-0

[Event "Condigne Dutch Open 2018"]
[Site "Dieren"]
[Date "2018.07.28"]
[Round "5"]
[White "Viani Antonio Dcunha"]
[Black "Evengroen, Henk-Jan"]
[Result "1-0"]
[ECO "C55"]
[WhiteElo "2404"]
[BlackElo "2160"]
[Annotator "NA"]
[PlyCount "57"]
[EventDate "2018.07.24"]
[EventType "swiss"]
[EventCountry "NED"]
[SourceTitle "playchess.com"]
[Source "ChessBase"]
[SourceQuality "1"]
[TimeControl "40/5400+30:1800+30"]

1. e4 {[%emt 0:00:01]} e5 {[%emt 0:00:05]} 2. Nf3 {[%emt 0:00:07]} Nc6 {[%emt 0:00:04]} 3. Bc4 {[%emt 0:00:09]} Nf6 {[%emt 0:00:05]} 4. d3 {[%emt 0:00:08]} Be7 {[%emt 0:00:04]} 5. Nbd2 {[%emt 0:00:37]} O-O {[%emt 0:00:50]} 6. Bb3 {[%emt 0:01:16]} d6 {[%emt 0:08:58]} 7. c3 {[%emt 0:00:57]} Na5 {[%emt 0:00:09]} 8. Bc2 {[%emt 0:00:32]} c5 {[%emt 0:00:05]} 9. Nf1 {[%emt 0:01:46]} Nc6 {[%emt 0:01:51]} 10. Ng3 {[%emt 0:02:44]} Qc7 {[%emt 0:09:31]} 11. O-O {[%emt 0:03:11]} h6 {[%emt 0:03:00]} 12. h3 {[%emt 0:03:53]} Be6 {[%emt 0:01:22]} 13. Nh2 {[%emt 0:02:51]} d5 {[%emt 0:12:20]} 14. Qf3 {[%emt 0:01:34]} Qd7 {[%emt 0:13:03]} 15. Nf5 {[%emt 0:07:49]} Bxf5 {[%emt 0:05:47]} 16. exf5 {[%emt 0:00:09]} c4 {[%emt 0:04:56]} 17. dxc4 {[%emt 0:09:46]} e4 {[%emt 0:00:17]} 18. Qd1 {[%emt 0:06:08]} d4 {[%emt 0:06:28]} 19. cxd4 {[%emt 0:00:16]} Nxd4 {[%emt 0:00:05]} 20. Ng4 {[%emt 0:01:15]} Nxg4 {[%emt 0:03:25]} 21. hxg4 {[%emt 0:02:26]} Rad8 {[%emt 0:01:13]} 22. Bxe4 {[%emt 0:02:00]} Qc7 {[%emt 0:00:53]} 23. Bd5 {[%emt 0:02:18]} Bc5 {[%emt 0:01:43]} 24. Be3 {[%emt 0:05:41]} Qe5 {[%emt 0:00:49]} 25. Qd3 {[%emt 0:01:10]} b5 {[%emt 0:05:58]} 26. b3 {[%emt 0:00:35]} Rfe8 {[%emt 0:00:22]} 27. Rad1 {[%emt 0:01:54]} Rxd5 {[%emt 0:09:37]} 28. cxd5 {[%emt 0:00:14]} Bd6 {[%emt 0:00:04]} 29. g3 {[%emt 0:00:39]} 1-0

[Event "Condigne Dutch Open 2018"]
[Site "Dieren"]
[Date "2018.07.28"]
[Round "5"]
[White "Miedema, David"]
[Black "Sparenberg, Erik"]
[Result "1/2-1/2"]
[ECO "C01"]
[WhiteElo "2370"]
[BlackElo "2173"]
[Annotator "NA"]
[PlyCount "79"]
[EventDate "2018.07.24"]
[EventType "swiss"]
[EventCountry "NED"]
[SourceTitle "playchess.com"]
[Source "ChessBase"]
[SourceQuality "1"]
[TimeControl "40/5400+30:1800+30"]

1. c4 {[%emt 0:05:04]} e6 {[%emt 0:00:50]} 2. e4 {[%emt 0:01:35]} d5 {[%emt 0:07:39]} 3. exd5 {[%emt 0:00:38]} exd5 {[%emt 0:00:10]} 4. d4 {[%emt 0:00:11]} Nf6 {[%emt 0:05:26]} 5. Nc3 {[%emt 0:02:35]} Be7 {[%emt 0:08:05]} 6. Nf3 {[%emt 0:00:13]} O-O {[%emt 0:00:19]} 7. Be2 {[%emt 0:01:31]} dxc4 {[%emt 0:04:45]} 8. Bxc4 {[%emt 0:01:23]} Bg4 {[%emt 0:10:41]} 9. Be3 {[%emt 0:00:19]} c6 {[%emt 0:00:11]} 10. h3 {[%emt 0:01:14]} Bh5 {[%emt 0:05:35]} 11. g4 {[%emt 0:04:01]} Bg6 {[%emt 0:00:08]} 12. Ne5 {[%emt 0:00:04]} Nbd7 {[%emt 0:09:49]} 13. f4 {[%emt 0:03:03]} Be4 {[%emt 0:06:47]} 14. Nxe4 {[%emt 0:04:22]} Nxe4 {[%emt 0:00:07]} 15. O-O {[%emt 0:03:04]} Nb6 {[%emt 0:12:34]} 16. Bb3 {[%emt 0:03:38]} Nd5 {[%emt 0:06:42]} 17. Qd3 {[%emt 0:00:52]} Nd6 {[%emt 0:01:01]} 18. Rae1 {[%emt 0:01:42]} Nb5 {[%emt 0:07:03]} 19. Bf2 {[%emt 0:09:45]} Bh4 {[%emt 0:03:53]} 20. Qd2 {[%emt 0:14:04]} Re8 {[%emt 0:04:03]} 21. Nf3 {[%emt 0:01:17]} Bxf2+ {[%emt 0:00:20]} 22. Kxf2 {[%emt 0:00:29]} Qd6 {[%emt 0:00:57]} 23. Re5 {[%emt 0:01:18]} f6 {[%emt 0:00:46]} 24. Rxe8+ {[%emt 0:00:49]} Rxe8 {[%emt 0:00:04]} 25. Re1 {[%emt 0:00:02]} Rxe1 {[%emt 0:01:02]} 26. Qxe1 {[%emt 0:00:03]} Kf8 {[%emt 0:00:33]} 27. Qe4 {[%emt 0:00:08]} g6 {[%emt 0:01:06]} 28. Kg3 {[%emt 0:02:42]} Nbc7 {[%emt 0:01:08]} 29. h4 {[%emt 0:01:48]} Ne6 {[%emt 0:00:35]} 30. Bxd5 {[%emt 0:00:08]} cxd5 {[%emt 0:00:52]} 31. Qe3 {[%emt 0:00:06]} g5 {[%emt 0:01:09]} 32. Qc1 {[%emt 0:02:02]} Qxf4+ {[%emt 0:00:18]} 33. Qxf4 {[%emt 0:00:04]} gxf4+ {[%emt 0:00:11]} 34. Kh3 {[%emt 0:04:33]} Kg7 {[%emt 0:00:01]} 35. g5 {[%emt 0:00:51]} Kg6 {[%emt 0:01:55]} 36. Kg4 {[%emt 0:01:17]} f5+ {[%emt 0:00:28]} 37. Kh3 {[%emt 0:00:03]} Kh5 {[%emt 0:00:19]} 38. Ne5 {[%emt 0:00:05]} Nxd4 {[%emt 0:00:28]} 39. Nd7 {[%emt 0:00:03]} Kg6 {[%emt 0:01:20]} 40. Ne5+ {[%emt 0:01:29]} 1/2-1/2